fUSD/lending_fUSD_20260405
["ID","MTS","AMOUNT","RATE_DAILY","PERIOD"]
[419850482,1775418649549,-403.93256284,0.00015236,2]
[419850483,1775418649559,-500.0,0.00015236,2]
[419850484,1775418649568,-500.0,0.00015236,2]
[419850485,1775418649577,-500.0,0.00015236,2]
[419850486,1775418649586,-500.0,0.00015236,2]
[419850487,1775418649595,-160.34417201,0.00015236,2]
[419850488,1775418649604,-500.0,0.00015236,2]
[419850489,1775418649613,-500.0,0.00015236,2]
[419850490,1775418649623,-2351.0,0.00015239,2]
[419850491,1775418649632,-155.82,0.00015241,2]
[419850492,1775418649641,-150.0,0.00015244,2]
[419850493,1775418649650,-150.0,0.00015245,2]
[419850494,1775418649659,-151.0,0.00015246,2]
[419850495,1775418649669,-151.0,0.00015246,2]
[419850496,1775418649678,-151.0,0.00015246,2]
[419850497,1775418649687,-500.0,0.00015246,2]
[419850498,1775418649696,-500.0,0.00015246,2]
[419850499,1775418649705,-500.0,0.00015246,2]
[419850500,1775418649715,-500.0,0.00015246,2]
[419850501,1775418649724,-500.0,0.00015246,2]
[419850502,1775418649735,-500.0,0.00015246,2]
[419850503,1775418649745,-519.03182682,0.00015246,2]
[419850504,1775418649754,-10272.10520533,0.00015246,2]
[419850505,1775418649764,-500.0,0.00015246,2]
[419850506,1775418649774,-151.0,0.00015246,2]
[419850507,1775418649785,-150.0,0.00015247,2]
[419850508,1775418649795,-150.0,0.00015247,2]
[419850509,1775418649804,-150.0,0.00015266,2]
[419850510,1775418649814,-500.0,0.00015267,2]
[419850511,1775418649823,-500.0,0.00015267,2]
[419850512,1775418649833,-500.0,0.00015267,2]
[419850513,1775418649843,-339.79133416,0.00015267,2]
[419850514,1775418649852,-150.0,0.00015267,2]
[419850515,1775418649862,-150.0,0.00015275,2]
[419850516,1775418649872,-150.0,0.00015278,2]
[419850517,1775418649882,-150.0,0.00015285,2]
[419850518,1775418649892,-150.0,0.00015289,2]
[419850519,1775418649901,-10652.17309792,0.00015301,2]
[419850520,1775418649912,-500.0,0.00015301,2]
[419850521,1775418649921,-151.0,0.00015301,2]
[419850522,1775418649931,-150.0,0.00015304,2]
[419850523,1775418649942,-150.0,0.00015306,2]
[419850524,1775418649951,-150.0,0.0001531,2]
[419850525,1775418649960,-150.0,0.00015311,2]
[419850526,1775418649970,-270.75485119,0.00015316,2]
[419850527,1775418649980,-11412.29190275,0.00015316,2]
[419850528,1775418649990,-150.0,0.00015322,2]
[419850529,1775418650000,-150.0,0.00015333,2]
[419850530,1775418650010,-150.0,0.00015336,2]
[419850531,1775418650020,-500.0,0.00015339,2]
[419850532,1775418650030,-150.0,0.00015341,2]
[419850533,1775418650040,-150.0,0.00015341,2]
[419850534,1775418650049,-1171.96403511,0.00015342,2]
[419850535,1775418650059,-1381.20749087,0.00015342,2]
[419850536,1775418650069,-1193.24301277,0.00015342,2]
[419850537,1775418650078,-1432.23819105,0.00015342,2]
[419850538,1775418650088,-515.96545288,0.00015342,2]
[419850539,1775418650098,-2000.0,0.00015342,2]
[419850540,1775418650108,-2000.0,0.00015342,2]
[419850541,1775418650118,-2000.0,0.00015342,2]
[419850542,1775418650129,-2000.0,0.00015342,2]
[419850543,1775418650139,-2000.0,0.00015342,2]
[419850544,1775418650149,-347.07116371,0.00015342,2]
[419850545,1775418650160,-1753.85680119,0.00015342,2]
[419850546,1775418650170,-1000.0,0.00015342,2]
[419850547,1775418650180,-2000.0,0.00015342,2]
[419850548,1775418650189,-2000.0,0.00015342,2]
[419850549,1775418650199,-150.0,0.00015356,2]
[419850550,1775418650210,-11046.30350255,0.00015356,2]
[419850551,1775418650220,-500.0,0.00015356,2]
[419850552,1775418650230,-151.0,0.00015356,2]
[419850553,1775418650239,-150.0,0.0001536,2]
[419850554,1775418650250,-1399.77259342,0.00015366,2]
[419850555,1775418650260,-150.0,0.00015366,2]
[419850556,1775418650270,-150.0,0.00015373,2]
[419850557,1775418650280,-150.0,0.00015378,2]
[419850558,1775418650290,-150.0,0.00015379,2]
[419850559,1775418650300,-150.0,0.00015396,2]
[419850560,1775418650311,-150.0,0.00015398,2]
[419850561,1775418650320,-190.3683,0.000154,2]
[419850562,1775418650330,-150.0,0.000154,2]
[419850563,1775418650340,-150.0,0.00015404,2]
[419850564,1775418650350,-11455.01673214,0.00015411,2]
[419850565,1775418650359,-500.0,0.00015411,2]
[419850566,1775418650369,-151.0,0.00015411,2]
[419850567,1775418650378,-150.0,0.00015416,2]
[419850568,1775418650387,-150.0,0.00015422,2]
[419850569,1775418650397,-150.0,0.00015426,2]
[419850570,1775418650408,-150.0,0.00015435,2]
[419850571,1775418650419,-150.0,0.00015435,2]
[419850572,1775418650428,-500.0,0.00015442,2]
[419850573,1775418650438,-500.0,0.00015442,2]
[419850574,1775418650449,-4734.22617623,0.00015442,2]
[419850575,1775418650460,-150.0,0.00015444,2]
[419850576,1775418650470,-150.0,0.00015452,2]
[419850577,1775418650480,-150.0,0.00015454,2]
[419850578,1775418650491,-150.0,0.00015457,2]
[419850579,1775418650501,-1443.46790256,0.00015466,2]
[419850580,1775418650511,-500.0,0.00015466,2]
[419850581,1775418650522,-151.0,0.00015466,2]
[419850582,1775418650532,-150.0,0.00015467,2]
[419850583,1775418650542,-150.0,0.00015467,2]
[419850584,1775418650552,-150.0,0.00015467,2]
[419850585,1775418650561,-150.0,0.00015467,2]
[419850586,1775418650571,-8422.99193755,0.00015471,2]
[419850587,1775418650581,-871.95012592,0.00015471,2]
[419850588,1775418650591,-514.82,0.00015471,2]
[419850589,1775418650601,-500.0,0.00015471,2]
[419850590,1775418650611,-1269.86,0.00015471,2]
[419850591,1775418650621,-500.0,0.00015471,2]
[419850592,1775418650631,-1143.16,0.00015471,2]
[419850593,1775418650641,-713.35,0.00015471,2]
[419850594,1775418650651,-500.0,0.00015471,2]
[419850595,1775418650660,-1151.32,0.00015471,2]
[419850596,1775418650670,-500.0,0.00015471,2]
[419850597,1775418650680,-673.65,0.00015471,2]
[419850598,1775418650690,-1063.21,0.00015471,2]
[419850599,1775418650700,-827.5,0.00015471,2]
[419850600,1775418650710,-1282.44,0.00015471,2]
[419850601,1775418650720,-9697.99,0.00015471,2]
[419850602,1775418650730,-7440.37,0.00015471,2]
[419850603,1775418650739,-28985.77,0.00015471,2]
[419850604,1775418650749,-3062.66,0.00015471,2]
[419850605,1775418650759,-150.0,0.00015473,2]
[419850606,1775418650769,-350.0,0.00015483,2]
[419850607,1775418650779,-150.0,0.00015487,2]
[419850608,1775418650789,-150.0,0.00015489,2]
[419850609,1775418650799,-150.0,0.00015492,2]
[419850610,1775418650809,-1115.58,0.00015493,2]
[419850611,1775418650819,-150.0,0.00015498,2]
[419850612,1775418650828,-1000.0,0.00015504,2]
[419850613,1775418650838,-1000.0,0.00015504,2]
[419850614,1775418650848,-189.74788311,0.00015504,2]
[419850615,1775418650858,-1000.0,0.00015504,2]
[419850616,1775418650868,-1000.0,0.00015504,2]
[419850617,1775418650878,-514.82,0.00015505,2]
[419850618,1775418650888,-500.0,0.00015505,2]
[419850619,1775418650898,-1269.86,0.00015505,2]
[419850620,1775418650908,-500.0,0.00015505,2]
[419850621,1775418650918,-1143.16,0.00015505,2]
[419850622,1775418650928,-713.35,0.00015505,2]
[419850623,1775418650938,-500.0,0.00015505,2]
[419850624,1775418650948,-1151.32,0.00015505,2]
[419850625,1775418650957,-500.0,0.00015505,2]
[419850626,1775418650967,-673.65,0.00015505,2]
[419850627,1775418650976,-1063.21,0.00015505,2]
[419850628,1775418650986,-827.5,0.00015505,2]
[419850629,1775418650996,-1282.44,0.00015505,2]
[419850630,1775418651006,-150.0,0.00015511,2]
[419850631,1775418651016,-150.0,0.00015511,2]
[419850632,1775418651026,-150.0,0.00015517,2]
[419850633,1775418651036,-5888.0,0.00015521,2]
[419850634,1775418651045,-500.0,0.00015521,2]
[419850635,1775418651055,-151.0,0.00015521,2]
[419850636,1775418651065,-150.0,0.00015529,2]
[419850637,1775418651075,-150.0,0.00015529,2]
[419850638,1775418651085,-150.0,0.00015533,2]
[419850639,1775418651095,-518.811803,0.00015543,2]
[419850640,1775418651104,-518.811803,0.00015543,2]
[419850641,1775418651114,-518.811803,0.00015543,2]
[419850642,1775418651124,-518.811803,0.00015543,2]
[419850643,1775418651134,-636.073718,0.00015543,2]
[419850644,1775418651144,-636.073718,0.00015543,2]
[419850645,1775418651154,-636.073718,0.00015543,2]
[419850646,1775418651165,-636.073718,0.00015543,2]
[419850647,1775418651176,-161.597705,0.00015543,2]
[419850648,1775418651187,-161.597705,0.00015543,2]
[419850649,1775418651198,-161.597705,0.00015543,2]
[419850650,1775418651208,-161.597705,0.00015543,2]
[419850651,1775418651219,-10000.0,0.00015543,2]
[419850652,1775418651229,-30172.71823857,0.00015544,2]
[419850653,1775418651240,-37991.50674491,0.00015544,2]
[419850654,1775418651251,-150.0,0.00015547,2]
[419850655,1775418651260,-150.0,0.00015548,2]
[419850656,1775418651271,-150.0,0.00015556,2]
[419850657,1775418651282,-150.0,0.00015561,2]
[419850658,1775418651293,-150.0,0.00015567,2]
[419850659,1775418651303,-500.0,0.00015576,2]
[419850660,1775418651313,-151.0,0.00015576,2]
[419850661,1775418651323,-150.0,0.00015577,2]
[419850662,1775418651334,-150.0,0.00015578,2]
[419850663,1775418651345,-150.0,0.00015586,2]
[419850664,1775418651359,-5888.0,0.0001559,2]
[419850665,1775418651373,-150.0,0.00015592,2]
[419850666,1775418651383,-155.82,0.00015597,2]
[419850667,1775418651394,-500.0,0.00015598,2]
[419850668,1775418651405,-514.82,0.00015599,2]
[419850669,1775418651416,-481.06713155,0.00015599,2]
[419850670,1775418651427,-1269.86,0.00015599,2]
[419850671,1775418651437,-500.0,0.00015599,2]
[419850672,1775418651448,-1143.16,0.00015599,2]
[419850673,1775418651458,-713.35,0.00015599,2]
[419850674,1775418651467,-500.0,0.00015599,2]
[419850675,1775418651477,-1151.32,0.00015599,2]
[419850676,1775418651487,-573.05086874,0.00015599,2]
[419850677,1775418651498,-673.65,0.00015599,2]
[419850678,1775418651509,-1063.21,0.00015599,2]
[419850679,1775418651519,-827.5,0.00015599,2]
[419850680,1775418651531,-1282.44,0.00015599,2]
[419850681,1775418651541,-157.39168565,0.000156,2]
[419850682,1775418651552,-150.0,0.000156,2]
[419850683,1775418651563,-150.0,0.000156,2]
[419850684,1775418651573,-150.0,0.00015605,2]
[419850685,1775418651583,-150.0,0.00015608,2]
[419850686,1775418651593,-500.0,0.00015613,2]
[419850687,1775418651604,-364.40328381,0.00015615,2]
[419850688,1775418651614,-150.0,0.00015622,2]
[419850689,1775418651626,-150.0,0.00015624,2]
[419850690,1775418651636,-150.0,0.00015624,2]
[419850691,1775418651646,-1583.0,0.00015624,2]
[419850692,1775418651656,-514.82,0.00015626,2]
[419850693,1775418651668,-1269.86,0.00015626,2]
[419850694,1775418651678,-420.19790691,0.00015626,2]
[419850695,1775418651688,-1143.16,0.00015626,2]
[419850696,1775418651698,-713.35,0.00015626,2]
[419850697,1775418651707,-500.0,0.00015626,2]
[419850698,1775418651717,-1151.32,0.00015626,2]
[419850699,1775418651727,-673.65,0.00015626,2]
[419850700,1775418651736,-1063.21,0.00015626,2]
[419850701,1775418651746,-827.5,0.00015626,2]
[419850702,1775418651756,-1282.44,0.00015626,2]
[419850703,1775418651765,-168.186131,0.00015626,2]
[419850704,1775418651775,-168.186131,0.00015626,2]
[419850705,1775418651785,-209.40437684,0.00015629,2]
[419850706,1775418651796,-200.0,0.00015629,2]
[419850707,1775418651808,-1428.38747117,0.00015629,2]
[419850708,1775418651819,-209.40437684,0.00015629,2]
[419850709,1775418651831,-181.08010149,0.00015629,2]
[419850710,1775418651844,-771.01748645,0.00015629,2]
[419850711,1775418651855,-693.3919763,0.00015629,2]
[419850712,1775418651865,-290.26104003,0.00015629,2]
[419850713,1775418651876,-500.0,0.00015631,2]
[419850714,1775418651885,-151.0,0.00015631,2]
[419850715,1775418651895,-178.831115,0.00015637,2]
[419850716,1775418651904,-150.0,0.00015638,2]
[419850717,1775418651914,-150.0,0.00015642,2]
[419850718,1775418651924,-150.0,0.00015644,2]
[419850719,1775418651934,-1583.0,0.00015645,2]
[419850720,1775418651943,-634.472,0.00015653,2]
[419850721,1775418651953,-1046.0,0.00015653,2]
[419850722,1775418651962,-3556.258,0.00015653,2]
[419850723,1775418651972,-1348.652,0.00015653,2]
[419850724,1775418651982,-1267.843,0.00015653,2]
[419850725,1775418651992,-276.717,0.00015653,2]
[419850726,1775418652002,-3770.0,0.00015653,2]
[419850727,1775418652012,-415.0,0.00015653,2]
[419850728,1775418652022,-151.0,0.00015653,2]
[419850729,1775418652032,-151.0,0.00015653,2]
[419850730,1775418652042,-150.0,0.00015655,2]
[419850731,1775418652052,-150.0,0.00015661,2]
[419850732,1775418652062,-150.0,0.00015667,2]
[419850733,1775418652072,-150.0,0.00015668,2]
[419850734,1775418652081,-2218.13051349,0.0001568,2]
[419850735,1775418652092,-150.0,0.0001568,2]
[419850736,1775418652101,-1986.27,0.00015684,2]
[419850737,1775418652111,-500.0,0.00015686,2]
[419850738,1775418652120,-151.0,0.00015686,2]
[419850739,1775418652130,-150.0,0.00015686,2]
[419850740,1775418652140,-150.0,0.00015689,2]
[419850741,1775418652149,-150.0,0.00015698,2]
[419850742,1775418652159,-150.0,0.00015699,2]
[419850743,1775418652168,-161.9594,0.000157,2]
[419850744,1775418652178,-150.0,0.00015711,2]
[419850745,1775418652188,-500.0,0.00015716,2]
[419850746,1775418652198,-500.0,0.00015716,2]
[419850747,1775418652207,-150.0,0.00015718,2]
[419850748,1775418652218,-150.0,0.00015718,2]
[419850749,1775418652228,-5888.0,0.00015724,2]
[419850750,1775418652237,-5871.363,0.00015725,2]
[419850751,1775418652247,-332.722,0.00015725,2]
[419850752,1775418652624,-150.0,0.00015726,2]
[419850753,1775418652634,-150.0,0.00015728,2]
[419850754,1775418652643,-150.0,0.00015733,2]
[419850755,1775418652653,-150.0,0.00015733,2]
[419850756,1775418652662,-785.67,0.00015734,2]
[419850757,1775418652671,-150.0,0.00015736,2]
[419850758,1775418652681,-588.99,0.00015739,2]
[419850759,1775418652690,-969.24,0.00015739,2]
[419850760,1775418652699,-1000.0,0.0001574,2]
[419850761,1775418652708,-1000.0,0.00015742,2]
[419850762,1775418652717,-150.0,0.00015745,2]
[419850763,1775418652727,-150.0,0.00015749,2]
[419850764,1775418652735,-262.0,0.00015753,2]
[419850765,1775418652745,-150.0,0.00015755,2]
[419850766,1775418652754,-150.0,0.00015756,2]
[419850767,1775418652764,-406.09,0.00015756,2]
[419850768,1775418652773,-150.0,0.00015758,2]
[419850769,1775418652782,-996.49996996,0.00015759,2]
[419850770,1775418652791,-150.0,0.0001576,2]
[419850771,1775418652800,-1000.0,0.00015767,2]
[419850772,1775418652809,-1000.0,0.00015772,2]
[419850773,1775418652819,-519.0,0.00015774,2]
[419850774,1775418652828,-150.0,0.00015774,2]
[419850775,1775418652837,-1270.261854,0.00015776,2]
[419850776,1775418652846,-1270.261854,0.00015776,2]
[419850777,1775418652855,-1270.261854,0.00015776,2]
[419850778,1775418652864,-1270.261854,0.00015776,2]
[419850779,1775418652873,-4122.0,0.00015776,5]
[419850780,1775418652882,-3297.0,0.00015776,5]
[419850781,1775418652891,-150.0,0.00015778,2]
[419850782,1775418652900,-150.0,0.0001578,2]
[419850783,1775418652909,-1000.0,0.00015784,2]
[419850784,1775418652919,-1000.0,0.00015784,2]
[419850785,1775418652928,-1000.0,0.00015784,2]
[419850786,1775418652937,-1000.0,0.00015784,2]
[419850787,1775418652946,-1000.0,0.00015784,2]
[419850788,1775418652955,-500.76237275,0.00015784,2]
[419850789,1775418652965,-150.0,0.00015789,2]
[419850790,1775418652975,-150.0,0.00015793,2]
[419850791,1775418652986,-1000.0,0.00015794,2]
[419850792,1775418652997,-861.43877969,0.00015794,2]
[419850793,1775418653006,-1000.0,0.00015794,2]
[419850794,1775418653016,-308.03873246,0.00015794,2]
[419850795,1775418653026,-627.70930647,0.00015794,2]
[419850796,1775418653036,-1000.0,0.00015794,2]
[419850797,1775418653046,-161.9594,0.000158,2]
[419850798,1775418653056,-150.0,0.000158,2]
[419850799,1775418653065,-1173.58370412,0.00015801,2]
[419850800,1775418653074,-11870.0,0.00015808,2]
[419850801,1775418653084,-414.0,0.00015811,2]
[419850802,1775418653094,-1000.0,0.00015811,2]
[419850803,1775418653104,-150.0,0.00015812,2]
[419850804,1775418653113,-150.0,0.00015812,2]
[419850805,1775418653122,-1000.0,0.00015815,2]
[419850806,1775418653132,-1000.0,0.00015815,2]
[419850807,1775418653143,-1000.0,0.00015815,2]
[419850808,1775418653153,-1000.0,0.00015815,2]
[419850809,1775418653165,-150.0,0.00015819,2]
[419850810,1775418653175,-350.0,0.0001582,3]
[419850811,1775418653184,-150.0,0.00015822,2]
[419850812,1775418653194,-150.0,0.00015831,2]
[419850813,1775418653203,-1115.58,0.00015835,2]
[419850814,1775418653212,-1000.0,0.00015836,2]
[419850815,1775418653222,-339.78322367,0.00015838,2]
[419850816,1775418653231,-514.82,0.00015839,2]
[419850817,1775418653241,-1269.86,0.00015839,2]
[419850818,1775418653250,-1143.16,0.00015839,2]
[419850819,1775418653261,-713.35,0.00015839,2]
[419850820,1775418653270,-500.0,0.00015839,2]
[419850821,1775418653280,-1151.32,0.00015839,2]
[419850822,1775418653289,-673.65,0.00015839,2]
[419850823,1775418653298,-1063.21,0.00015839,2]
[419850824,1775418653310,-588.99,0.00015839,2]
[419850825,1775418653321,-969.24,0.00015839,2]
[419850826,1775418653331,-827.5,0.00015839,2]
[419850827,1775418653341,-1282.44,0.00015839,2]
[419850828,1775418653351,-151.0,0.00015839,2]
[419850829,1775418653361,-151.0,0.00015839,2]
[419850830,1775418653371,-151.0,0.00015839,2]
[419850831,1775418653380,-1115.58,0.00015839,2]
[419850832,1775418653390,-500.0,0.00015839,2]
[419850833,1775418653400,-500.0,0.00015839,2]
[419850834,1775418653409,-225841.21728149,0.0001584,2]
[419850835,1775418653419,-166143.042,0.0001584,2]
[419850836,1775418653429,-151.0,0.0001584,2]
[419850837,1775418653439,-155.02882,0.0001584,2]
[419850838,1775418653449,-151.0,0.0001584,2]
[419850839,1775418653458,-151.0,0.0001584,2]
[419850840,1775418653467,-151.0,0.0001584,2]
[419850841,1775418653476,-209.75164,0.0001584,2]
[419850842,1775418653486,-652.815241,0.0001584,2]
[419850843,1775418653496,-151.0,0.0001584,2]
[419850844,1775418653505,-652.815241,0.0001584,2]
[419850845,1775418653516,-539.252182,0.0001584,2]
[419850846,1775418653525,-652.815241,0.0001584,2]
[419850847,1775418653535,-151.0,0.0001584,2]
[419850848,1775418653544,-539.252182,0.0001584,2]
[419850849,1775418653554,-652.815241,0.0001584,2]
[419850850,1775418653563,-539.252182,0.0001584,2]
[419850851,1775418653573,-539.252182,0.0001584,2]
[419850852,1775418653582,-151.0,0.0001584,2]
[419850853,1775418653591,-151.0,0.0001584,2]
[419850854,1775418653601,-158.086667,0.0001584,2]
[419850855,1775418653610,-151.0,0.0001584,2]
[419850856,1775418653620,-151.0,0.0001584,2]
[419850857,1775418653629,-151.0,0.0001584,2]
[419850858,1775418653640,-150.0,0.00015843,2]
[419850859,1775418653650,-274.62401824,0.00015843,2]
[419850860,1775418653660,-150.0,0.00015844,2]
[419850861,1775418653669,-1000.0,0.00015845,2]
[419850862,1775418653680,-1000.0,0.00015846,2]
[419850863,1775418653691,-150.0,0.00015849,2]
[419850864,1775418653700,-150.0,0.00015849,2]
[419850865,1775418653711,-996.49996996,0.00015857,2]
[419850866,1775418653721,-519.0,0.00015858,2]
[419850867,1775418653731,-414.0,0.00015858,2]
[419850868,1775418653741,-640.96494318,0.00015862,2]
[419850869,1775418653752,-343.0,0.00015865,2]
[419850870,1775418653761,-150.0,0.00015867,2]
[419850871,1775418653771,-150.0,0.00015868,2]
[419850872,1775418653783,-500.0,0.00015871,2]
[419850873,1775418653793,-200.0,0.00015871,2]
[419850874,1775418653803,-500.0,0.00015872,2]
[419850875,1775418653812,-200.0,0.00015872,2]
[419850876,1775418653821,-500.0,0.00015872,2]
[419850877,1775418653830,-500.0,0.00015872,2]
[419850878,1775418653839,-500.0,0.00015872,2]
[419850879,1775418653848,-200.0,0.00015872,2]
[419850880,1775418653857,-200.0,0.00015872,2]
[419850881,1775418653866,-500.0,0.00015873,2]
[419850882,1775418653875,-500.0,0.00015873,2]
[419850883,1775418653884,-500.0,0.00015873,2]
[419850884,1775418653894,-1115.58,0.00015873,2]
[419850885,1775418653903,-588.99,0.00015874,2]
[419850886,1775418653912,-969.24,0.00015874,2]
[419850887,1775418653921,-150.0,0.00015874,2]
[419850888,1775418653931,-150.0,0.00015875,2]
[419850889,1775418653940,-1000.0,0.00015876,2]
[419850890,1775418653949,-150.0,0.00015879,2]
[419850891,1775418653958,-414.0,0.00015883,2]
[419850892,1775418653967,-1000.0,0.00015885,2]
[419850893,1775418653976,-500.0,0.00015887,2]
[419850894,1775418653985,-150.0,0.00015887,2]
[419850895,1775418653994,-150.0,0.00015889,2]
[419850896,1775418654004,-414.0,0.00015889,2]
[419850897,1775418654013,-2000.0,0.0001589,2]
[419850898,1775418654022,-1065.40450783,0.0001589,2]
[419850899,1775418654031,-1000.0,0.0001589,2]
[419850900,1775418654041,-2500.0,0.0001589,2]
[419850901,1775418654050,-2500.0,0.0001589,2]
[419850902,1775418654059,-823.00574972,0.0001589,2]
[419850903,1775418654068,-2006.37622858,0.0001589,2]
[419850904,1775418654078,-1100.33490613,0.0001589,2]
[419850905,1775418654087,-151.0,0.00015897,2]
[419850906,1775418654096,-514.82,0.00015898,2]
[419850907,1775418654107,-1269.86,0.00015898,2]
[419850908,1775418654119,-1143.16,0.00015898,2]
[419850909,1775418654129,-713.35,0.00015898,2]
[419850910,1775418654139,-500.0,0.00015898,2]
[419850911,1775418654148,-1151.32,0.00015898,2]
[419850912,1775418654157,-673.65,0.00015898,2]
[419850913,1775418654167,-1063.21,0.00015898,2]
[419850914,1775418654176,-827.5,0.00015898,2]
[419850915,1775418654185,-1282.44,0.00015898,2]
[419850916,1775418654194,-588.99,0.00015899,2]
[419850917,1775418654204,-969.24,0.00015899,2]
[419850918,1775418654214,-1000.0,0.00015899,2]
[419850919,1775418654223,-500.0,0.00015899,2]
[419850920,1775418654233,-161.9594,0.000159,2]
[419850921,1775418654242,-161.9594,0.000159,2]
[419850922,1775418654251,-161.9594,0.000159,2]
[419850923,1775418654262,-161.9594,0.000159,2]
[419850924,1775418654271,-161.9594,0.000159,2]
[419850925,1775418654281,-161.9594,0.000159,2]
[419850926,1775418654291,-161.9594,0.000159,2]
[419850927,1775418654300,-161.9594,0.000159,2]
[419850928,1775418654309,-161.9594,0.000159,2]
[419850929,1775418654319,-161.9594,0.000159,2]
[419850930,1775418654328,-161.9594,0.000159,2]
[419850931,1775418654338,-161.9594,0.000159,2]
[419850932,1775418654347,-161.9594,0.000159,2]
[419850933,1775418654357,-161.9594,0.000159,2]
[419850934,1775418654366,-161.9594,0.000159,2]
[419850935,1775418654375,-161.9594,0.000159,2]
[419850936,1775418654385,-161.9594,0.000159,2]
[419850937,1775418654395,-161.9594,0.000159,2]
[419850938,1775418654404,-161.9594,0.000159,2]
[419850939,1775418654413,-161.9594,0.000159,2]
[419850940,1775418654423,-161.9594,0.000159,2]
[419850941,1775418654433,-161.9594,0.000159,2]
[419850942,1775418654442,-161.9594,0.000159,2]
[419850943,1775418654452,-161.9594,0.000159,2]
[419850944,1775418654461,-50154.49209134,0.000159,2]
[419850945,1775418654470,-162.446,0.000159,2]
[419850946,1775418654480,-514.82,0.000159,2]
[419850947,1775418654489,-150.0,0.000159,2]
[419850948,1775418654499,-1269.86,0.000159,2]
[419850949,1775418654508,-1143.16,0.000159,2]
[419850950,1775418654518,-713.35,0.000159,2]
[419850951,1775418654527,-500.0,0.000159,2]
[419850952,1775418654536,-1151.32,0.000159,2]
[419850953,1775418654546,-150.0,0.000159,2]
[419850954,1775418654555,-25000.0,0.000159,3]
[419850955,1775418654565,-673.65,0.000159,2]
[419850956,1775418654575,-150.0,0.000159,2]
[419850957,1775418654585,-5800.0,0.000159,2]
[419850958,1775418654596,-1063.21,0.000159,2]
[419850959,1775418654606,-150.0,0.000159,2]
[419850960,1775418654616,-827.5,0.000159,2]
[419850961,1775418654626,-1282.44,0.000159,2]
[419850962,1775418654636,-150.0,0.000159,2]
[419850963,1775418654646,-151.0,0.000159,2]
[419850964,1775418654655,-151.0,0.000159,2]
[419850965,1775418654666,-150.0,0.000159,2]
[419850966,1775418654675,-1399.77259342,0.000159,2]
[419850967,1775418654685,-25000.0,0.000159,3]
[419850968,1775418654695,-30172.71823857,0.000159,2]
[419850969,1775418654706,-4734.22617623,0.000159,2]
[419850970,1775418654716,-150.0,0.000159,2]
[419850971,1775418654728,-37991.50674491,0.000159,2]
[419850972,1775418654738,-270.75485119,0.000159,2]
[419850973,1775418654748,-518.811803,0.000159,2]
[419850974,1775418654757,-518.811803,0.000159,2]
[419850975,1775418654766,-518.811803,0.000159,2]
[419850976,1775418654775,-518.811803,0.000159,2]
[419850977,1775418654785,-150.0,0.000159,2]
[419850978,1775418654795,-636.073718,0.000159,2]
[419850979,1775418654806,-636.073718,0.000159,2]
[419850980,1775418654816,-636.073718,0.000159,2]
[419850981,1775418654825,-636.073718,0.000159,2]